bitfinex-derivatives/quotes_ETHF0:USTF0_20250627
["timestamp","ask_amount","ask_price","bid_price","bid_amount"]
[1751050858130,7.2293,2394.7,2394.6,32.69]
[1751050858532,0.83487,2394.5,2394.4,0.8584]
[1751050858833,0.83487,2394.5,2394.4,33.5474]
[1751050859834,0.83487,2394.5,2394.4,34.3823]
[1751050860334,0.83487,2394.5,2394.4,34.38229]
[1751050860634,0.83487,2394.5,2394.4,33.5474]
[1751050861030,0.83487,2394.5,2394.4,7.6734]
[1751050861233,0.83487,2394.5,2394.4,34.3823]
[1751050861432,0.83487,2394.5,2394.4,33.5474]
[1751050861939,0.83507,2393.9,2393.8,4.15594852]
[1751050862129,0.83507,2393.9,2393.8,25.874]
[1751050862435,0.83511,2393.8,2393.7,26.10362]
[1751050862632,3.05141,2393.8,2393.7,26.10362]
[1751050863538,1.63611,2393.8,2393.7,26.10362]
[1751050864037,4.9919,2393.8,2393.7,34.43708038]
[1751050864231,4.04285,2394.0,2393.8,0.83511]
[1751050864432,4.04285,2394.0,2393.9,25.873]
[1751050864631,0.83499,2394.2,2393.9,32.689]
[1751050864833,0.83501,2394.1,2394.0,2.2114]
[1751050865135,1.60691,2394.1,2394.0,1.5811]
[1751050865929,1.60691,2394.1,2394.0,2.41614]
[1751050866128,1.60691,2394.1,2394.0,1.5811]
[1751050866730,1.60691,2394.1,2394.0,2.41614]
[1751050867241,0.7719,2394.1,2394.0,2.41614]
[1751050867447,0.7719,2394.1,2394.0,3.87274]
[1751050870343,0.7719,2394.1,2394.0,11.37106038]
[1751050870544,0.83496,2394.3,2394.2,0.83497]
[1751050870738,3.2078,2394.4,2394.3,0.83494]
[1751050870940,8.1997,2394.4,2394.3,0.83494]
[1751050871136,4.9919,2394.4,2394.3,8.33326038]
[1751050871344,4.9919,2394.4,2394.3,9.78836038]
[1751050872137,5.8268,2394.4,2394.3,2.29004]
[1751050872435,5.8268,2394.4,2394.3,0.83494]
[1751050872841,0.83497,2394.2,2394.1,7.65199]
[1751050873039,0.83497,2394.2,2394.1,33.52699]
[1751050873346,0.83496,2394.3,2394.2,0.83497]
[1751050873541,8.1997,2394.4,2394.1,33.52698]
[1751050873542,0.83497,2394.2,2394.1,33.52698]
[1751050873740,0.83495,2394.3,2394.2,0.83496]
[1751050873944,8.1997,2394.4,2394.1,32.692]
[1751050874140,9.03461,2394.4,2394.2,0.83497]
[1751050874344,0.83494,2394.3,2394.2,6.817]
[1751050874546,0.83494,2394.3,2394.2,26.70897]
[1751050874741,0.83494,2394.3,2394.2,25.874]
[1751050875138,2.22724,2394.3,2394.2,25.874]
[1751050875344,2.22724,2394.3,2394.2,26.70897]
[1751050875649,2.22724,2394.3,2394.2,25.874]
[1751050876040,2.22724,2394.3,2394.2,26.70897]
[1751050876236,3.2078,2394.4,2394.2,25.874]
[1751050876439,3.2078,2394.4,2394.3,0.83494]
[1751050876840,8.1997,2394.4,2394.3,1.67144]
[1751050877043,4.9919,2394.4,2394.3,4.87924]
[1751050877352,3.2078,2394.7,2394.6,0.83483]
[1751050877649,4.04248,2395.1,2394.6,40.18132038]
[1751050877952,2.53059,2395.0,2394.9,0.8347]
[1751050878249,1.6959,2395.0,2394.9,33.51773]
[1751050878448,1.6959,2395.0,2394.9,32.683]
[1751050878649,2.53059,2395.0,2394.9,32.683]
[1751050878949,1.6959,2395.0,2394.9,32.683]
[1751050879343,2.53059,2395.0,2394.9,32.683]
[1751050879643,0.83473,2394.9,2394.8,6.81]
[1751050879845,0.83476,2394.8,2394.7,40.8]
[1751050880048,5.39216,2394.8,2394.7,66.671]
[1751050880248,0.83483,2394.6,2394.5,0.8449]
[1751050880442,0.83482,2394.7,2394.5,34.36077]
[1751050880845,9.03448,2394.8,2394.5,33.5259]
[1751050881142,9.03448,2394.8,2394.7,0.8348]
[1751050881344,9.03448,2394.8,2394.7,25.871]
[1751050881548,9.03448,2394.8,2394.7,26.7058]
[1751050881748,8.1997,2394.8,2394.7,26.7058]
[1751050881947,9.03446,2394.8,2394.7,25.871]
[1751050882252,9.03446,2394.8,2394.7,26.7058]
[1751050882451,9.03446,2394.8,2394.7,25.871]
[1751050883449,4.9919,2394.8,2394.7,37.41192038]
[1751050883648,0.8594,2395.4,2394.8,2.08684]
[1751050883840,5.8513,2395.4,2395.1,0.83464]
[1751050884046,0.83459,2395.3,2395.2,33.51362]
[1751050884241,5.8513,2395.4,2395.0,3.2078]
[1751050884454,0.83462,2395.2,2395.1,25.869]
[1751050884841,0.83476,2394.8,2394.7,4.04257]
[1751050885046,0.83476,2394.8,2394.7,36.72157]
[1751050885247,0.83474,2394.9,2394.8,0.83475]
[1751050885554,0.83476,2394.8,2394.7,36.72157]
[1751050885748,0.83475,2394.9,2394.8,0.83475]
[1751050885948,0.83476,2394.8,2394.7,36.72157]
[1751050886147,0.83476,2394.8,2394.7,36.72158]
[1751050886355,0.83474,2394.9,2394.8,0.83475]
[1751050886655,0.83476,2394.8,2394.7,36.72158]
[1751050886954,0.83476,2394.8,2394.7,35.8868]
[1751050887748,0.8348,2394.7,2394.6,0.8027]
[1751050887953,0.83483,2394.6,2394.5,7.6006]
[1751050888151,0.83483,2394.6,2394.5,34.30147]
[1751050888447,0.83483,2394.6,2394.5,33.4666]
[1751050889556,0.83483,2394.6,2394.5,32.674]
[1751050890750,0.8349,2394.4,2394.3,3.2078]
[1751050891058,0.8349,2394.4,2394.3,35.8808]
[1751050891357,0.83488,2394.5,2394.4,0.8349]
[1751050892051,4.9919,2394.7,2394.3,44.73782038]
[1751050892250,0.83484,2394.6,2394.5,0.83485]
[1751050892450,0.83484,2394.6,2394.5,33.50785]
[1751050892653,0.83483,2394.6,2394.5,33.50785]
[1751050892966,0.83483,2394.6,2394.5,33.50784]
[1751050893257,4.9919,2394.7,2394.6,0.83483]
[1751050894163,4.9919,2394.7,2394.6,1.63053]
[1751050894352,5.8267,2394.7,2394.6,1.63053]
[1751050894662,4.9919,2394.7,2394.6,1.63053]
[1751050894861,4.9919,2394.7,2394.6,2.41903]
[1751050895058,0.83475,2394.9,2394.8,0.83476]
[1751050895263,0.83475,2394.9,2394.8,33.50676]
[1751050895564,0.83473,2394.9,2394.8,32.672]
[1751050895959,0.83473,2394.9,2394.8,33.50676]
[1751050896156,0.1149,2395.0,2394.9,0.83473]
[1751050896463,0.4302,2395.2,2395.1,0.83466]
[1751050896755,1.26482,2395.2,2395.1,25.863]
[1751050897349,0.83466,2395.1,2395.0,25.863]
[1751050897564,1.62556,2395.1,2395.0,25.863]
[1751050897758,3.00066,2395.1,2395.0,25.863]
[1751050898462,2.08676,2395.0,2394.6,4.04261]
[1751050898761,0.83476,2394.8,2394.7,25.861]
[1751050898962,0.83476,2394.8,2394.7,26.6958]
[1751050899159,0.83476,2394.8,2394.7,26.69578]
[1751050899360,0.83476,2394.8,2394.7,25.861]
[1751050899754,0.83476,2394.8,2394.7,26.6958]
[1751050899956,0.83476,2394.8,2394.7,25.861]
[1751050901767,0.8348,2394.7,2394.6,3.2078]
[1751050901973,3.048,2394.7,2394.6,29.0678]
[1751050902175,3.048,2394.7,2394.6,3.2078]
[1751050902368,6.2558,2394.7,2394.6,25.86]
[1751050902669,0.8349,2394.4,2394.3,6.809]
[1751050902868,0.8349,2394.4,2394.3,32.669]
[1751050903262,2.08711,2394.6,2393.9,48.103]
[1751050903467,0.83504,2394.0,2393.9,48.103]
[1751050903675,0.83507,2393.9,2393.8,0.832]
[1751050903870,0.83507,2393.9,2393.8,26.692]
[1751050904068,0.83511,2393.8,2393.7,7.03862]
[1751050904269,0.83511,2393.8,2393.7,32.89862]
[1751050905071,4.5572,2394.0,2393.7,33.73374]
[1751050905266,0.8269,2393.9,2393.7,33.73374]
[1751050905473,1.662,2393.9,2393.8,0.83511]
[1751050906172,0.8269,2393.9,2393.8,0.83511]
[1751050907165,1.66197,2393.9,2393.7,33.73374]
[1751050907370,1.66201,2393.9,2393.7,32.89862]
[1751050907676,0.8269,2393.9,2393.7,33.73374]
[1751050907877,0.8269,2393.9,2393.8,0.83511]
[1751050908176,0.83511,2393.8,2393.7,32.89862]
[1751050908377,0.83511,2393.8,2393.7,33.73374]
[1751050908570,0.83511,2393.8,2393.7,32.89862]
[1751050908775,0.83511,2393.8,2393.7,0.22962]
[1751050908971,2.17571,2393.8,2393.7,26.09162]
[1751050909273,0.83514,2393.7,2393.6,6.804]
[1751050909476,0.83521,2393.5,2393.4,40.8]
[1751050909672,0.83521,2393.5,2393.4,66.661]
[1751050909873,0.83521,2393.5,2393.4,67.49625]
[1751050910077,0.83521,2393.5,2393.4,66.661]
[1751050910374,0.83521,2393.5,2393.4,25.861]
[1751050910975,4.5508,2393.7,2393.3,47.605]
[1751050910976,4.5508,2393.7,2393.3,40.8]
[1751050911284,0.83521,2393.5,2393.4,25.863]
[1751050911675,0.83528,2393.3,2393.2,55.7334]
[1751050911879,0.83528,2393.3,2393.2,81.5954]
[1751050912074,0.83528,2393.3,2393.2,32.667]
[1751050912385,3.00978,2393.3,2393.2,32.667]
[1751050912583,8.00168,2393.3,2393.2,32.667]
[1751050912769,0.83534,2393.2,2393.0,44.84317]
[1751050912974,2.19914,2393.2,2393.1,25.864]
[1751050913479,0.83535,2393.1,2393.0,44.84319]
[1751050913685,0.83535,2393.1,2393.0,29.90719]
[1751050913984,0.83539,2393.0,2392.9,7.6048]
[1751050914179,0.83539,2393.0,2392.9,47.605]
[1751050914388,0.83539,2393.0,2392.9,32.669]
[1751050914580,8.02159,2393.0,2392.9,32.669]
[1751050914777,8.02159,2393.0,2392.9,6.805]
[1751050914982,8.02159,2393.0,2392.9,32.669]
[1751050916083,6.65779,2393.0,2392.9,32.669]
[1751050916987,6.65779,2393.0,2392.9,25.864]
[1751050917380,6.65779,2393.0,2392.7,1.62397]
[1751050917381,0.83546,2392.8,2392.7,0.7885]
[1751050917577,0.83546,2392.8,2392.7,26.6545]
[1751050917778,0.83549,2392.7,2392.6,42.47812]
[1751050917978,0.83549,2392.7,2392.6,75.15012]
[1751050918179,5.82738,2392.8,2392.6,34.35012]
[1751050918882,4.9919,2392.8,2392.6,34.35013]
[1751050919086,4.9919,2392.8,2392.7,0.83549]
[1751050919482,4.9919,2392.8,2392.7,26.70349]
[1751050919681,4.9919,2392.8,2392.7,27.53159]
[1751050919883,4.76228,2392.8,2392.7,29.01319]
[1751050920189,3.2078,2393.1,2393.0,0.83539]
[1751050920391,3.2078,2393.1,2393.0,33.51039]
[1751050920588,4.1755,2393.1,2393.0,33.51039]
[1751050921182,0.08425,2393.1,2393.0,38.51039]
[1751050921380,3.2078,2394.2,2393.1,2.08839]
[1751050921580,0.83502,2394.1,2393.7,10.70612038]
[1751050921785,3.7946,2394.0,2393.8,25.867]
[1751050922085,3.7946,2394.0,2393.9,0.83506]
[1751050923180,3.7946,2394.0,2393.8,25.867]
[1751050923485,3.7946,2394.0,2393.7,25.867]
[1751050923486,0.83511,2393.8,2393.7,25.867]
[1751050923686,0.83511,2393.8,2393.5,0.8352]
[1751050923894,0.83511,2393.8,2393.7,25.867]
[1751050924991,4.008,2393.9,2393.7,26.70213]
[1751050925285,0.83511,2393.8,2393.7,25.865]
[1751050925684,5.82971,2393.8,2393.7,25.865]
[1751050926786,5.82971,2393.8,2393.7,26.70014]
[1751050926987,4.9946,2393.8,2393.7,26.70014]
[1751050927390,4.9946,2393.8,2393.7,34.90794]
[1751050927587,3.2078,2394.2,2394.1,0.835]
[1751050927788,3.2078,2394.2,2394.1,26.699]
[1751050928092,4.04277,2394.2,2394.1,26.699]
[1751050928494,3.2078,2394.2,2394.1,26.699]
[1751050928789,4.9946,2394.3,2394.2,0.83497]
[1751050928997,4.9946,2394.3,2394.2,1.65967]
[1751050929397,5.82954,2394.3,2394.2,0.8247]
[1751050929895,0.83503,2394.1,2393.8,0.7902]
[1751050930091,0.83504,2394.0,2393.9,34.32975]
[1751050930293,4.9946,2394.3,2393.9,33.4937]
[1751050930489,0.83504,2394.0,2393.9,33.4937]
[1751050930690,0.83507,2393.9,2393.8,0.7902]
[1751050930888,0.83507,2393.9,2393.8,26.6502]
[1751050931094,5.82967,2393.9,2393.8,26.6502]
[1751050931495,4.9946,2393.9,2393.6,7.64116]
[1751050931697,0.83513,2393.8,2393.7,27.4759]
[1751050931897,0.83513,2393.8,2393.7,69.7207]
[1751050932193,0.83513,2393.8,2393.7,28.9207]
[1751050932394,0.83513,2393.8,2393.7,34.2819]
[1751050933195,0.83513,2393.8,2393.7,6.806]
[1751050933396,0.83513,2393.8,2393.7,32.665]
[1751050935499,0.83518,2393.6,2393.5,7.6626]
[1751050935705,0.83518,2393.6,2393.5,33.5206]
[1751050936602,0.83518,2393.6,2393.5,35.80251]
[1751050936803,0.83518,2393.6,2393.5,34.9673]
[1751050937501,0.83518,2393.6,2393.5,33.5206]
[1751050938400,0.83518,2393.6,2393.5,34.35581]
[1751050938606,0.83518,2393.6,2393.5,33.5206]
[1751050939006,0.83518,2393.6,2393.5,34.35581]
[1751050939504,4.9946,2393.8,2393.6,0.83515]
[1751050939708,5.82971,2393.8,2393.7,25.856]
[1751050941202,5.82971,2393.8,2393.7,26.69114]
[1751050941509,4.9946,2393.8,2393.7,29.89894]
[1751050941713,0.83506,2394.0,2393.9,0.83507]
[1751050942006,2.62766,2394.0,2393.9,32.655]
[1751050942610,2.62766,2394.0,2393.9,33.5009]
[1751050943001,5.0004,2394.0,2393.9,25.855]
[1751050943200,5.83544,2394.0,2393.9,25.855]
[1751050944811,2.62764,2394.0,2393.9,25.855]
[1751050945404,2.62764,2394.0,2393.9,27.47317]
[1751050945614,1.7926,2394.0,2393.9,27.47317]
[1751050945801,1.7926,2394.0,2393.9,28.90897]
[1751050946409,2.86433,2394.5,2393.9,2.2189]
[1751050946606,4.32473,2394.5,2394.0,32.652]
[1751050946812,0.835,2394.1,2394.0,32.652]
[1751050947413,0.835,2394.1,2394.0,33.48704]
[1751050947715,0.835,2394.1,2394.0,32.652]
[1751050948109,8.2024,2394.3,2393.6,7.6449]
[1751050948308,7.49832038,2393.7,2393.1,3.2078]
[1751050948615,7.49832038,2393.7,2392.7,3.2078]
[1751050948616,0.83546,2392.8,2392.7,3.2078]
[1751050948822,0.83553,2392.6,2392.5,10.95394852]
[1751050949326,4.9946,2392.6,2392.5,32.649]
[1751050949516,4.9946,2392.6,2392.5,38.48456]
[1751050949719,4.9946,2392.6,2392.5,39.96856]
[1751050951125,0.83537,2393.1,2392.9,0.83542]
[1751050951331,0.83537,2393.1,2393.0,25.851]
[1751050951528,4.04313,2393.2,2393.0,28.99108]
[1751050951723,0.83535,2393.1,2393.0,28.1557]
[1751050952029,0.83535,2393.1,2393.0,26.6717]
[1751050952220,0.83535,2393.1,2393.0,0.8207]
[1751050952418,0.83546,2392.8,2392.7,3.2078]
[1751050952623,0.83546,2392.8,2392.7,35.8598]
[1751050952926,0.83549,2392.7,2392.6,0.8287]
[1751050953227,0.83549,2392.7,2392.6,26.6817]
[1751050955833,0.83549,2392.7,2392.6,0.8287]
[1751050956129,0.83553,2392.6,2392.5,7.6197]
[1751050956328,0.83553,2392.6,2392.5,33.4737]
[1751050956928,0.83556,2392.5,2392.4,40.8]
[1751050957123,0.83556,2392.5,2392.4,73.454]
[1751050957936,0.83555,2392.6,2392.4,74.28958]
[1751050958231,0.83555,2392.6,2392.5,0.83556]
[1751050958430,0.83556,2392.5,2392.4,73.454]
[1751050958923,0.83555,2392.6,2392.4,73.454]
[1751050959118,4.9946,2392.7,2392.6,0.83553]
[1751050959320,4.04323,2392.9,2392.6,34.18985038]
[1751050959532,4.04323,2392.9,2392.8,0.83546]
[1751050959833,6.87852,2392.9,2392.8,26.69046]
[1751050960024,6.87852,2392.9,2392.8,27.51876]
[1751050960335,6.87852,2392.9,2392.8,26.6833]
[1751050961230,6.87852,2392.9,2392.8,32.656]
[1751050961840,6.0431,2392.9,2392.5,0.8283]
[1751050962035,0.83552,2392.7,2392.6,32.656]
[1751050962633,0.83548,2392.8,2392.6,32.656]
[1751050962934,2.8353,2392.9,2392.6,34.0371]
[1751050963236,0.83546,2392.8,2392.7,0.83549]
[1751050963534,2.8353,2392.9,2392.5,4.87165]
[1751050963535,0.83553,2392.6,2392.5,4.87165]
[1751050963738,0.83553,2392.6,2392.5,37.52765]
[1751050963932,0.83553,2392.6,2392.5,4.87165]
[1751050964133,0.83553,2392.6,2392.5,37.52865]
[1751050964332,0.83553,2392.6,2392.5,10.8371]
[1751050964530,4.9946,2392.8,2392.6,0.83552]
[1751050964736,5.83006,2392.8,2392.7,25.856]
[1751050965130,0.83553,2392.6,2392.5,4.87164]
[1751050965428,4.9946,2392.8,2392.6,0.83552]
[1751050965632,5.83006,2392.8,2392.7,25.856]
[1751050966238,0.83546,2392.8,2392.7,26.69149]
[1751050966541,0.83546,2392.8,2392.7,25.856]
[1751050966744,4.9946,2392.8,2392.7,34.18981038]
[1751050966929,3.2078,2392.9,2392.8,0.83546]
[1751050967132,3.2078,2393.2,2392.8,14.0381]
[1751050967343,4.9946,2393.1,2393.0,8.33371038]
[1751050967526,4.04303,2393.5,2393.4,0.83525]
[1751050967727,4.9946,2393.5,2393.4,25.856]
[1751050968034,0.83519,2393.6,2393.5,0.83521]
[1751050968234,0.83521,2393.5,2393.4,29.74313]
[1751050968631,0.8352,2393.6,2393.4,29.74313]
[1751050968937,0.83521,2393.5,2393.4,29.74313]
[1751050969139,0.83519,2393.6,2393.5,0.8352]
[1751050969343,0.83519,2393.6,2393.4,28.9079]
[1751050969643,0.83521,2393.5,2393.4,29.74314]
[1751050969829,0.83521,2393.5,2393.4,1.6295]
[1751050970034,0.83521,2393.5,2393.4,32.647]
[1751050970538,5.82981,2393.5,2393.4,32.647]
[1751050970737,0.83528,2393.3,2393.2,3.2078]
[1751050971036,0.83539,2393.0,2392.9,6.794]
[1751050971240,0.83539,2393.0,2392.9,32.647]
[1751050971640,0.83542,2392.9,2392.8,3.2078]
[1751050971840,0.83542,2392.9,2392.8,35.8548]
[1751050972435,0.83542,2392.9,2392.8,36.69026]
[1751050972742,0.83542,2392.9,2392.8,35.8558]
[1751050974338,0.83542,2392.9,2392.8,36.69126]
[1751050975745,5.83001,2393.0,2392.9,0.83542]
[1751050976242,0.83542,2392.9,2392.8,35.8558]
[1751050976743,0.83542,2392.9,2392.8,35.8548]
[1751050977234,0.83542,2392.9,2392.8,36.69026]
[1751050977436,0.83542,2392.9,2392.8,36.69024]
[1751050979343,4.9946,2393.0,2392.9,0.83542]
[1751050979544,0.83542,2392.9,2392.8,36.69024]
[1751050980044,0.83542,2392.9,2392.8,6.795]
[1751050980250,0.83549,2392.7,2392.6,55.732]
[1751050980438,0.83549,2392.7,2392.6,81.583]
[1751050981137,8.2024,2393.0,2392.7,0.83548]
[1751050981346,0.83542,2392.9,2392.8,26.68646]
[1751050981949,0.83542,2392.9,2392.8,25.851]
[1751050982349,0.83542,2392.9,2392.8,26.68646]
[1751050982941,8.2024,2393.0,2392.8,26.68646]
[1751050982942,9.03781,2393.0,2392.9,0.83542]
[1751050983144,9.03781,2393.0,2392.9,7.63042]
[1751050983344,8.2024,2393.0,2392.9,7.63042]
[1751050983547,8.2024,2393.0,2392.9,9.07052]
[1751050983744,9.03779,2393.0,2392.9,9.07052]
[1751050985054,9.03779,2393.0,2392.9,6.795]
[1751050986141,9.03779,2393.0,2392.9,7.63042]
[1751050986348,9.03779,2393.0,2392.9,9.07392]
[1751050986647,4.9946,2393.0,2392.9,16.57224038]
[1751050986848,4.9946,2393.0,2392.9,21.57224038]
[1751050987148,0.0507,2393.4,2393.0,2.08841]
[1751050987355,0.0507,2393.4,2393.3,0.83528]
[1751050987356,0.88596,2393.4,2393.3,0.83528]
[1751050987551,0.0507,2393.4,2393.3,33.47828]
[1751050988656,0.88595,2393.4,2393.3,33.47828]
[1751050989146,0.88595,2393.4,2393.3,32.643]
[1751050989450,0.8353,2393.3,2393.2,0.83531]
[1751050989650,0.8353,2393.3,2393.2,33.47731]
[1751050989854,0.88598,2393.4,2393.3,0.83528]
[1751050990060,0.83528,2393.3,2393.2,33.47729]
[1751050990362,0.83528,2393.3,2393.2,32.642]
[1751050990654,0.83528,2393.3,2393.2,33.47732]
[1751050991464,0.0507,2393.4,2392.7,1.4583]
[1751050991758,0.83541,2393.0,2392.8,26.67945]
[1751050991952,0.83542,2392.9,2392.8,26.67945]
[1751050992152,0.83542,2392.9,2392.8,25.844]
[1751050992348,5.4728,2393.2,2392.7,6.794]
[1751050992349,0.83546,2392.8,2392.7,6.794]
[1751050992550,3.2078,2392.9,2392.4,0.83559]
[1751050992765,0.83556,2392.5,2392.4,6.794]
[1751050992952,0.83556,2392.5,2392.4,32.638]
[1751050993553,0.83556,2392.5,2392.4,33.4736]
[1751050993953,0.83556,2392.5,2392.4,32.638]
[1751050994261,0.83555,2392.6,2392.4,32.638]
[1751050994460,3.0302,2392.7,2392.4,33.47358]
[1751050994461,0.83556,2392.5,2392.4,33.47358]
[1751050994653,0.83555,2392.6,2392.5,0.83555]
[1751050994961,0.83555,2392.6,2392.4,32.638]
[1751050995760,0.83555,2392.6,2392.5,0.83556]
[1751050996061,3.0302,2392.7,2392.5,0.83556]
[1751050996354,1.61912,2392.7,2392.6,26.67953]
[1751050996758,1.61912,2392.7,2392.6,25.843]
[1751050997158,5.83008,2392.8,2392.7,0.83549]
[1751050997356,0.83549,2392.7,2392.6,26.6785]
[1751050997552,0.83549,2392.7,2392.6,0.8355]
[1751050997758,0.83549,2392.7,2392.6,26.6795]
[1751050998264,5.83007,2392.8,2392.7,0.83549]
[1751050998762,4.9946,2392.8,2392.7,7.62349]
[1751050998964,4.9946,2392.8,2392.7,9.17569]
[1751050999165,4.9946,2392.8,2392.7,10.51439]
[1751051000569,0.83543,2392.9,2392.8,0.83546]
[1751051000868,0.83543,2392.9,2392.8,25.844]
[1751051001757,5.83003,2392.9,2392.8,25.844]
[1751051001958,8.2024,2392.9,2392.0,16.9513789]
[1751051002155,3.2078,2392.6,2392.3,7.62363]
[1751051002358,0.83556,2392.5,2392.4,25.842]
[1751051002769,0.83556,2392.5,2392.4,26.6776]
[1751051003667,3.0733,2392.8,2392.4,25.842]
[1751051003668,0.83553,2392.7,2392.4,25.842]
[1751051003967,0.83546,2392.8,2392.7,0.83547]
[1751051004163,0.83546,2392.8,2392.7,33.46547]
[1751051004358,8.2024,2392.9,2392.7,32.63]
[1751051004565,0.83546,2392.8,2392.7,32.63]
[1751051005466,0.83546,2392.8,2392.7,33.46549]
[1751051006057,8.2024,2392.9,2392.8,0.83546]
[1751051006255,8.2024,2392.9,2392.8,3.04526]
[1751051006459,8.2024,2392.9,2392.8,3.79396]
[1751051006865,9.03782,2392.9,2392.8,25.84]
[1751051007266,8.2024,2392.9,2392.4,0.83559]
[1751051007565,0.83553,2392.6,2392.5,32.628]
[1751051007762,8.2024,2392.9,2392.5,33.46356]
[1751051007967,0.83552,2392.7,2392.5,33.46356]
[1751051008165,0.83552,2392.7,2392.6,32.628]
[1751051008361,0.83549,2392.7,2392.6,33.46353]
[1751051008561,0.83549,2392.7,2392.6,32.628]
[1751051008762,0.83553,2392.6,2392.5,0.83554]
[1751051008967,0.83553,2392.6,2392.5,33.46354]
[1751051009169,8.2024,2392.9,2392.6,0.83551]
[1751051009361,0.83549,2392.8,2392.7,25.84]
[1751051009564,0.83549,2392.8,2392.7,32.628]
[1751051010769,0.83549,2392.8,2392.7,33.46349]
[1751051011266,5.83003,2392.9,2392.8,0.83546]
[1751051011465,0.83543,2392.9,2392.8,1.3838]
[1751051011664,0.83543,2392.9,2392.8,43.74066]
[1751051011865,0.83542,2392.9,2392.8,2.94064]
[1751051012466,0.83542,2392.9,2392.8,2.1052]
[1751051012773,0.8354,2393.0,2392.9,0.83541]
[1751051013078,0.8354,2393.0,2392.9,25.839]
[1751051013674,1.63269,2393.1,2393.0,0.83539]
[1751051013875,1.63269,2393.1,2393.0,6.788]
[1751051014373,5.82995,2393.2,2393.1,0.83535]
[1751051014569,5.82995,2393.2,2393.1,25.838]
[1751051014570,0.83535,2393.2,2393.1,25.838]
[1751051016276,0.83535,2393.2,2393.1,26.67335]
[1751051016576,0.83535,2393.2,2393.1,25.838]
[1751051016777,0.83535,2393.2,2393.1,26.67335]
[1751051017174,4.04311,2393.3,2393.2,0.83532]
[1751051017476,4.9946,2393.4,2393.3,0.83528]
[1751051017673,0.83507,2393.9,2393.8,0.83508]
[1751051017873,1.4467,2394.2,2394.0,0.83504]
[1751051017874,6.13259081,2394.1,2394.0,0.83504]
[1751051018074,6.13259081,2394.1,2394.0,33.45704]
[1751051018075,6.1326327,2394.1,2394.0,33.45704]
[1751051018269,1.1380327,2394.1,2394.0,81.75536038]
[1751051018471,1.1380327,2394.1,2394.0,82.48186038]
[1751051018675,0.5138,2394.3,2394.2,0.83497]
[1751051018874,1.65130777,2394.3,2394.2,33.45697]
[1751051019177,1.65130777,2394.3,2394.2,38.45697]
[1751051019178,1.13750777,2394.3,2394.2,38.45697]
[1751051019374,3.28948481,2394.8,2394.4,0.8349]
[1751051019579,7.44930481,2395.0,2394.7,3.2078]
[1751051019783,2.45470481,2395.0,2394.9,7.49832038]
[1751051020078,2.45470481,2395.0,2394.9,8.33305038]
[1751051020278,1.13706445,2395.0,2394.9,9.73675038]
[1751051020587,1.13706445,2395.0,2394.9,32.62]
[1751051020781,0.83473,2394.9,2394.8,1.4415]
[1751051020979,0.83473,2394.9,2394.8,32.614]
[1751051024377,4.9946,2395.0,2394.7,3.2078]
[1751051024378,0.83476,2394.8,2394.7,3.2078]
[1751051024578,0.83476,2394.8,2394.7,35.8148]
[1751051027886,0.83476,2394.8,2394.7,3.2078]
[1751051028093,0.83476,2394.8,2394.7,35.8108]
[1751051028286,0.83476,2394.8,2394.7,3.2078]
[1751051028482,0.83476,2394.8,2394.7,35.8108]
[1751051028690,0.83476,2394.8,2394.7,35.8038]
[1751051029190,4.9946,2395.0,2394.7,35.8038]
[1751051029392,4.9946,2395.0,2394.9,8.33305038]
[1751051029591,0.83453,2395.5,2395.2,0.83461]
[1751051029890,0.0192,2395.4,2395.3,40.09332038]
[1751051030290,0.0192,2395.4,2395.3,40.92791038]
[1751051031694,0.85375,2395.4,2395.3,40.09332038]
[1751051031894,0.83455,2395.4,2395.3,40.09332038]
[1751051032299,0.83455,2395.4,2395.3,32.595]
[1751051033197,10.33909,2395.6,2395.0,1.4833]
[1751051033399,0.83455,2395.4,2395.3,6.776]
[1751051033597,0.83455,2395.4,2395.3,32.588]
[1751051033894,0.83466,2395.1,2395.0,1.4833]
[1751051034195,0.83464,2395.2,2395.0,32.588]
[1751051034497,0.83464,2395.2,2395.1,0.83464]
[1751051034789,0.83466,2395.1,2395.0,34.17277]
[1751051035598,0.83466,2395.1,2395.0,33.3381]
[1751051035786,0.83466,2395.1,2395.0,33.3361]
[1751051035990,0.83465,2395.2,2395.0,34.17076]
[1751051036201,0.83465,2395.2,2395.1,0.83466]
[1751051036796,0.83465,2395.2,2395.0,34.17077]
[1751051037299,0.83466,2395.1,2395.0,34.17077]
[1751051037799,0.8346,2395.3,2395.2,0.83459]
[1751051037992,0.83459,2395.3,2395.2,32.585]
[1751051038496,0.83458,2395.4,2395.3,0.83459]
[1751051038687,0.83459,2395.3,2395.2,32.585]
[1751051039396,13.15653,2395.6,2395.2,33.41962]
[1751051039599,0.83453,2395.5,2395.4,0.83454]
[1751051039900,0.83453,2395.5,2395.4,33.41754]
[1751051040203,0.83453,2395.5,2395.4,32.583]
[1751051040394,0.83453,2395.5,2395.4,33.41755]
[1751051040599,4.8,2395.6,2395.5,0.83452]
[1751051040802,0.83452,2395.5,2395.4,33.41753]